[Event "Titled Tuesday Blitz December 20 Early 2022"]
[White "De Firmian, Nick"]
[Black "Wild, Achim"]
[WhiteFideId "2000105"]
[BlackFideId "4658728"]
[WhiteElo "2460"]
[BlackElo "2265"]
[Result "0-1"]
[Round "10"]
[TimeControl "180+2"]
[Date "2022.12.20"]
[WhiteClock "0:00:26"]
[BlackClock "0:00:42"]

1. Nf3 {[%clk 0:03:00]}  d5 {[%clk 0:02:59]} 2. g3 {[%clk 0:03:01]}  e6 {[%clk 0:03:00]} 3. Bg2 {[%clk 0:03:01]}  Nf6 {[%clk 0:03:00]} 4. O-O {[%clk 0:03:01]}  Be7 {[%clk 0:03:00]} 5. b3 {[%clk 0:03:01]}  O-O {[%clk 0:03:01]} 6. Bb2 {[%clk 0:03:02]}  a5 {[%clk 0:03:01]} 7. a3 {[%clk 0:03:02]}  c5 {[%clk 0:03:00]} 8. d4 {[%clk 0:03:02]}  Nc6 {[%clk 0:03:00]} 9. c4 {[%clk 0:03:01]}  a4 {[%clk 0:02:57]} 10. cxd5 {[%clk 0:03:00]}  exd5 {[%clk 0:02:55]} 11. dxc5 {[%clk 0:02:59]}  Bxc5 {[%clk 0:02:55]} 12. b4 {[%clk 0:02:59]}  Bb6 {[%clk 0:02:49]} 13. Nc3 {[%clk 0:02:58]}  Re8 {[%clk 0:02:39]} 14. Nxa4 {[%clk 0:02:57]}  Ba7 {[%clk 0:02:39]} 15. e3 {[%clk 0:02:54]}  Bg4 {[%clk 0:02:32]} 16. Nc3 {[%clk 0:02:52]}  d4 {[%clk 0:02:30]} 17. exd4 {[%clk 0:02:44]}  Nxd4 {[%clk 0:02:30]} 18. h3 {[%clk 0:02:18]}  Bh5 {[%clk 0:02:23]} 19. g4 {[%clk 0:02:15]}  Bg6 {[%clk 0:02:12]} 20. Nxd4 {[%clk 0:02:12]}  Bxd4 {[%clk 0:02:11]} 21. Bxb7 {[%clk 0:02:02]}  Rb8 {[%clk 0:02:11]} 22. Bg2 {[%clk 0:02:01]}  h5 {[%clk 0:02:03]} 23. g5 {[%clk 0:01:50]}  Nh7 {[%clk 0:02:03]} 24. h4 {[%clk 0:01:49]}  Nf8 {[%clk 0:01:59]} 25. Qd2 {[%clk 0:01:43]}  Ne6 {[%clk 0:01:49]} 26. Rad1 {[%clk 0:01:33]}  Qc8 {[%clk 0:01:36]} 27. Nd5 {[%clk 0:01:30]}  Bxb2 {[%clk 0:01:33]} 28. Qxb2 {[%clk 0:01:31]}  Qc4 {[%clk 0:01:30]} 29. Rc1 {[%clk 0:01:20]}  Qxh4 {[%clk 0:01:29]} 30. f4 {[%clk 0:01:13]}  Qg4 {[%clk 0:01:20]} 31. Qf2 {[%clk 0:01:02]}  Be4 {[%clk 0:01:10]} 32. Nc7 {[%clk 0:00:54]}  Nxf4 {[%clk 0:00:54]} 33. Nxe8 {[%clk 0:00:45]}  Nh3+ {[%clk 0:00:46]} 34. Kh2 {[%clk 0:00:43]}  Nxf2 {[%clk 0:00:46]} 35. Rxf2 {[%clk 0:00:39]}  Rxe8 {[%clk 0:00:46]} 36. Bxe4 {[%clk 0:00:33]}  Qxe4 {[%clk 0:00:43]} 37. Rc3 {[%clk 0:00:26]}  Qe5+ {[%clk 0:00:42]} 0-1


[Site "https://www.chess.com"]

[Event "Titled Tuesday Blitz December 20 Early 2022"]
[White "DefiantChair"]
[Black "Sapon, Ilia"]
[BlackFideId "13504746"]
[WhiteElo "2631"]
[BlackElo "2074"]
[Result "1-0"]
[Round "10"]
[TimeControl "180+2"]
[Date "2022.12.20"]
[WhiteClock "0:00:13"]
[BlackClock "0:00:04"]

1. e4 {[%clk 0:03:00]}  e6 {[%clk 0:02:59]} 2. d4 {[%clk 0:03:00]}  d5 {[%clk 0:03:00]} 3. Nd2 {[%clk 0:03:01]}  Nf6 {[%clk 0:03:00]} 4. e5 {[%clk 0:03:01]}  Nfd7 {[%clk 0:03:00]} 5. Bd3 {[%clk 0:03:02]}  c5 {[%clk 0:03:01]} 6. c3 {[%clk 0:03:03]}  Nc6 {[%clk 0:03:02]} 7. Ne2 {[%clk 0:02:58]}  cxd4 {[%clk 0:03:03]} 8. cxd4 {[%clk 0:02:59]}  f6 {[%clk 0:03:01]} 9. exf6 {[%clk 0:03:00]}  Nxf6 {[%clk 0:03:02]} 10. O-O {[%clk 0:02:58]}  Bd6 {[%clk 0:03:01]} 11. Nf3 {[%clk 0:02:59]}  O-O {[%clk 0:03:01]} 12. Bg5 {[%clk 0:02:59]}  Bd7 {[%clk 0:02:59]} 13. Re1 {[%clk 0:02:58]}  Qc7 {[%clk 0:02:55]} 14. Bh4 {[%clk 0:02:57]}  Ne4 {[%clk 0:02:29]} 15. Ng3 {[%clk 0:02:51]}  Nxf2 {[%clk 0:02:02]} 16. Kxf2 {[%clk 0:02:51]}  Nxd4 {[%clk 0:02:00]} 17. Kg1 {[%clk 0:02:45]}  Nxf3+ {[%clk 0:01:44]} 18. gxf3 {[%clk 0:02:44]}  g5 {[%clk 0:01:42]} 19. Bxg5 {[%clk 0:02:22]}  Bxg3 {[%clk 0:01:41]} 20. Re2 {[%clk 0:02:22]}  Bf4 {[%clk 0:01:30]} 21. Bh4 {[%clk 0:02:12]}  Kh8 {[%clk 0:01:14]} 22. Kh1 {[%clk 0:02:12]}  e5 {[%clk 0:01:05]} 23. Rg2 {[%clk 0:02:09]}  Bc6 {[%clk 0:00:54]} 24. Qc2 {[%clk 0:01:58]}  Qf7 {[%clk 0:00:30]} 25. Rag1 {[%clk 0:01:34]}  Rg8 {[%clk 0:00:23]} 26. Rxg8+ {[%clk 0:01:32]}  Rxg8 {[%clk 0:00:24]} 27. Rxg8+ {[%clk 0:01:32]}  Kxg8 {[%clk 0:00:23]} 28. Qg2+ {[%clk 0:01:31]}  Qg7 {[%clk 0:00:20]} 29. Qh3 {[%clk 0:01:30]}  Bd7 {[%clk 0:00:13]} 30. Bf5 {[%clk 0:01:23]}  Be3 {[%clk 0:00:12]} 31. Bg3 {[%clk 0:01:22]}  Qg6 {[%clk 0:00:05]} 32. Bxg6 {[%clk 0:00:55]}  Bxh3 {[%clk 0:00:06]} 33. Bc2 {[%clk 0:00:55]}  Bd4 {[%clk 0:00:04]} 34. b4 {[%clk 0:00:53]}  Be6 {[%clk 0:00:04]} 35. Kg2 {[%clk 0:00:52]}  Kg7 {[%clk 0:00:05]} 36. Bh4 {[%clk 0:00:51]}  h6 {[%clk 0:00:06]} 37. Bd8 {[%clk 0:00:51]}  Bf7 {[%clk 0:00:06]} 38. Bc7 {[%clk 0:00:49]}  Bg6 {[%clk 0:00:06]} 39. Bb3 {[%clk 0:00:49]}  Bf7 {[%clk 0:00:07]} 40. Kg3 {[%clk 0:00:43]}  Kf6 {[%clk 0:00:07]} 41. f4 {[%clk 0:00:42]}  Ke6 {[%clk 0:00:08]} 42. Kg4 {[%clk 0:00:36]}  e4 {[%clk 0:00:08]} 43. Bb8 {[%clk 0:00:33]}  a6 {[%clk 0:00:08]} 44. Ba4 {[%clk 0:00:30]}  h5+ {[%clk 0:00:08]} 45. Kg5 {[%clk 0:00:26]}  Bf6+ {[%clk 0:00:08]} 46. Kh6 {[%clk 0:00:25]}  d4 {[%clk 0:00:08]} 47. Ba7 {[%clk 0:00:17]}  d3 {[%clk 0:00:07]} 48. Be3 {[%clk 0:00:16]}  Kf5 {[%clk 0:00:05]} 49. Bd7+ {[%clk 0:00:15]}  Be6 {[%clk 0:00:06]} 50. Be8 {[%clk 0:00:15]}  Bxa2 {[%clk 0:00:05]} 51. h3 {[%clk 0:00:15]}  Bc3 {[%clk 0:00:05]} 52. Bxh5 {[%clk 0:00:14]}  d2 {[%clk 0:00:05]} 53. Bg4+ {[%clk 0:00:14]}  Kf6 {[%clk 0:00:05]} 54. Bd1 {[%clk 0:00:15]}  Bxb4 {[%clk 0:00:04]} 55. Bd4+ {[%clk 0:00:14]}  Kf5 {[%clk 0:00:04]} 56. Be5 {[%clk 0:00:13]}  a5 {[%clk 0:00:04]} 57. Bg4# {[%clk 0:00:13]} 1-0


[Site "https://www.chess.com"]

[Event "Titled Tuesday Blitz December 20 Early 2022"]
[White "Devallee, Jeremie"]
[Black "Alexei_Gubajdullin"]
[WhiteFideId "665240"]
[WhiteElo "2204"]
[BlackElo "2625"]
[Result "0-1"]
[Round "10"]
[TimeControl "180+2"]
[Date "2022.12.20"]
[WhiteClock "0:00:01"]
[BlackClock "0:00:48"]

1. e4 {[%clk 0:03:00]}  g6 {[%clk 0:02:58]} 2. d4 {[%clk 0:02:59]}  Bg7 {[%clk 0:02:59]} 3. f4 {[%clk 0:03:00]}  d6 {[%clk 0:02:58]} 4. Nf3 {[%clk 0:02:56]}  c5 {[%clk 0:02:57]} 5. c3 {[%clk 0:02:56]}  Nf6 {[%clk 0:02:52]} 6. Bd3 {[%clk 0:02:55]}  O-O {[%clk 0:02:51]} 7. O-O {[%clk 0:02:54]}  Bg4 {[%clk 0:02:49]} 8. Nbd2 {[%clk 0:02:48]}  cxd4 {[%clk 0:02:48]} 9. cxd4 {[%clk 0:02:49]}  Nc6 {[%clk 0:02:49]} 10. h3 {[%clk 0:02:41]}  Bxf3 {[%clk 0:02:48]} 11. Nxf3 {[%clk 0:02:42]}  Qb6 {[%clk 0:02:48]} 12. Bc2 {[%clk 0:02:37]}  Nd7 {[%clk 0:02:46]} 13. Be3 {[%clk 0:02:24]}  e5 {[%clk 0:02:45]} 14. fxe5 {[%clk 0:01:54]}  dxe5 {[%clk 0:02:43]} 15. Qd2 {[%clk 0:01:41]}  exd4 {[%clk 0:02:42]} 16. Bh6 {[%clk 0:01:40]}  d3+ {[%clk 0:02:29]} 17. Be3 {[%clk 0:01:39]}  Qxb2 {[%clk 0:02:28]} 18. Qxd3 {[%clk 0:01:36]}  Nde5 {[%clk 0:02:18]} 19. Nxe5 {[%clk 0:01:34]}  Nxe5 {[%clk 0:02:18]} 20. Qe2 {[%clk 0:01:29]}  Rfc8 {[%clk 0:02:11]} 21. Rac1 {[%clk 0:01:19]}  Qxa2 {[%clk 0:02:05]} 22. Bd4 {[%clk 0:01:09]}  Nf3+ {[%clk 0:02:02]} 23. Rxf3 {[%clk 0:00:45]}  Bxd4+ {[%clk 0:02:01]} 24. Kh1 {[%clk 0:00:46]}  Rc7 {[%clk 0:02:01]} 25. Rd3 {[%clk 0:00:36]}  Be5 {[%clk 0:01:59]} 26. Qd1 {[%clk 0:00:25]}  Rac8 {[%clk 0:01:45]} 27. Rd8+ {[%clk 0:00:19]}  Rxd8 {[%clk 0:01:45]} 28. Qxd8+ {[%clk 0:00:20]}  Kg7 {[%clk 0:01:44]} 29. Qd1 {[%clk 0:00:18]}  Qa3 {[%clk 0:01:42]} 30. Rb1 {[%clk 0:00:15]}  Qg3 {[%clk 0:01:42]} 31. Kg1 {[%clk 0:00:15]}  Qh2+ {[%clk 0:01:39]} 32. Kf1 {[%clk 0:00:15]}  Qh1+ {[%clk 0:01:38]} 33. Kf2 {[%clk 0:00:16]}  Qh2 {[%clk 0:01:29]} 34. Qd3 {[%clk 0:00:14]}  Rc3 {[%clk 0:01:23]} 35. Qd2 {[%clk 0:00:11]}  Rg3 {[%clk 0:01:22]} 36. Rg1 {[%clk 0:00:10]}  Rxh3 {[%clk 0:01:17]} 37. Kf1 {[%clk 0:00:09]}  Rf3+ {[%clk 0:01:16]} 38. Ke2 {[%clk 0:00:06]}  Bc3 {[%clk 0:00:55]} 39. Qd1 {[%clk 0:00:03]}  Rf6 {[%clk 0:00:50]} 40. Bd3 {[%clk 0:00:01]}  Qg3 {[%clk 0:00:48]} 0-1


[Site "https://www.chess.com"]

[Event "Titled Tuesday Blitz December 20 Early 2022"]
[White "Ducrest, Pierre"]
[Black "Patterson, Fheopatrick"]
[WhiteFideId "1303627"]
[BlackFideId "30939364"]
[WhiteElo "2004"]
[BlackElo "1497"]
[Result "1-0"]
[Round "10"]
[TimeControl "180+2"]
[Date "2022.12.20"]
[WhiteClock "0:00:48"]
[BlackClock "0:01:00"]

1. d4 {[%clk 0:03:00]}  Nf6 {[%clk 0:02:58]} 2. c4 {[%clk 0:03:00]}  e6 {[%clk 0:02:55]} 3. Nc3 {[%clk 0:03:01]}  Bb4 {[%clk 0:02:55]} 4. Qc2 {[%clk 0:03:01]}  O-O {[%clk 0:02:54]} 5. a3 {[%clk 0:03:01]}  Bxc3+ {[%clk 0:02:53]} 6. Qxc3 {[%clk 0:03:02]}  d5 {[%clk 0:02:53]} 7. e3 {[%clk 0:03:02]}  dxc4 {[%clk 0:02:52]} 8. Bxc4 {[%clk 0:03:00]}  b6 {[%clk 0:02:52]} 9. Ne2 {[%clk 0:02:58]}  Bb7 {[%clk 0:02:50]} 10. f3 {[%clk 0:02:56]}  Nbd7 {[%clk 0:02:48]} 11. e4 {[%clk 0:02:57]}  c5 {[%clk 0:02:48]} 12. Be3 {[%clk 0:02:56]}  cxd4 {[%clk 0:02:48]} 13. Qxd4 {[%clk 0:02:44]}  Rc8 {[%clk 0:02:46]} 14. O-O {[%clk 0:02:04]}  Nc5 {[%clk 0:02:38]} 15. Ba2 {[%clk 0:01:51]}  Ba6 {[%clk 0:02:29]} 16. Rfe1 {[%clk 0:01:47]}  e5 {[%clk 0:02:21]} 17. Qxd8 {[%clk 0:01:43]}  Rfxd8 {[%clk 0:02:22]} 18. Bxc5 {[%clk 0:01:20]}  Rxc5 {[%clk 0:02:20]} 19. Red1 {[%clk 0:01:19]}  Rxd1+ {[%clk 0:01:48]} 20. Rxd1 {[%clk 0:01:18]}  Kf8 {[%clk 0:01:48]} 21. Nc3 {[%clk 0:01:18]}  Bc4 {[%clk 0:01:33]} 22. Bxc4 {[%clk 0:01:17]}  Rxc4 {[%clk 0:01:34]} 23. Rd8+ {[%clk 0:01:17]}  Ke7 {[%clk 0:01:32]} 24. Ra8 {[%clk 0:01:17]}  Rc7 {[%clk 0:01:31]} 25. Kf2 {[%clk 0:01:13]}  Ke6 {[%clk 0:01:18]} 26. Ke3 {[%clk 0:01:12]}  Nd7 {[%clk 0:01:10]} 27. Re8+ {[%clk 0:00:48]}  Kd6 {[%clk 0:01:00]} 28. Nb5+ {[%clk 0:00:48]} 1-0


[Site "https://www.chess.com"]

[Event "Titled Tuesday Blitz December 20 Early 2022"]
[White "Forgacs, Gyula"]
[Black "McCarthyStone"]
[WhiteFideId "701203"]
[WhiteElo "2305"]
[BlackElo "2471"]
[Result "0-1"]
[Round "10"]
[TimeControl "180+2"]
[Date "2022.12.20"]
[WhiteClock "0:00:40"]
[BlackClock "0:00:37"]

1. e4 {[%clk 0:03:00]}  e5 {[%clk 0:02:57]} 2. Nf3 {[%clk 0:03:00]}  d6 {[%clk 0:02:57]} 3. d4 {[%clk 0:03:00]}  exd4 {[%clk 0:02:58]} 4. Nxd4 {[%clk 0:03:01]}  Nf6 {[%clk 0:02:59]} 5. Nc3 {[%clk 0:03:00]}  g6 {[%clk 0:03:00]} 6. Bc4 {[%clk 0:03:01]}  Bg7 {[%clk 0:03:00]} 7. Bf4 {[%clk 0:03:01]}  O-O {[%clk 0:03:00]} 8. Qd2 {[%clk 0:03:01]}  Re8 {[%clk 0:03:01]} 9. O-O-O {[%clk 0:03:01]}  Nc6 {[%clk 0:03:01]} 10. Nxc6 {[%clk 0:02:56]}  bxc6 {[%clk 0:03:01]} 11. f3 {[%clk 0:02:56]}  a5 {[%clk 0:02:58]} 12. a4 {[%clk 0:02:47]}  Rb8 {[%clk 0:02:57]} 13. e5 {[%clk 0:02:39]}  Nd5 {[%clk 0:02:54]} 14. Nxd5 {[%clk 0:02:31]}  cxd5 {[%clk 0:02:54]} 15. Bxd5 {[%clk 0:02:32]}  Bf5 {[%clk 0:02:45]} 16. g4 {[%clk 0:02:24]}  Be6 {[%clk 0:02:45]} 17. Bxe6 {[%clk 0:02:22]}  Rxe6 {[%clk 0:02:46]} 18. c3 {[%clk 0:02:10]}  Qe8 {[%clk 0:02:40]} 19. exd6 {[%clk 0:01:59]}  cxd6 {[%clk 0:02:27]} 20. Rhe1 {[%clk 0:01:57]}  Qxa4 {[%clk 0:02:25]} 21. Kb1 {[%clk 0:01:30]}  Rxe1 {[%clk 0:00:56]} 22. Rxe1 {[%clk 0:01:31]}  Bxc3 {[%clk 0:00:56]} 23. Qxc3 {[%clk 0:01:31]}  Qxf4 {[%clk 0:00:57]} 24. h4 {[%clk 0:01:29]}  a4 {[%clk 0:00:53]} 25. Qc7 {[%clk 0:01:19]}  Qb4 {[%clk 0:00:49]} 26. Re2 {[%clk 0:01:03]}  a3 {[%clk 0:00:49]} 27. Qc1 {[%clk 0:00:39]}  axb2 {[%clk 0:00:48]} 28. Rxb2 {[%clk 0:00:39]}  Qxb2+ {[%clk 0:00:49]} 29. Qxb2 {[%clk 0:00:38]}  Rxb2+ {[%clk 0:00:50]} 30. Kxb2 {[%clk 0:00:38]}  f5 {[%clk 0:00:46]} 31. Kc3 {[%clk 0:00:39]}  fxg4 {[%clk 0:00:45]} 32. fxg4 {[%clk 0:00:40]}  Kf7 {[%clk 0:00:46]} 33. Kd4 {[%clk 0:00:41]}  Ke6 {[%clk 0:00:46]} 34. Ke4 {[%clk 0:00:41]}  d5+ {[%clk 0:00:46]} 35. Kf4 {[%clk 0:00:40]}  h6 {[%clk 0:00:46]} 36. h5 {[%clk 0:00:32]}  g5+ {[%clk 0:00:46]} 37. Kf3 {[%clk 0:00:30]}  Ke5 {[%clk 0:00:45]} 38. Ke3 {[%clk 0:00:31]}  d4+ {[%clk 0:00:45]} 39. Kd3 {[%clk 0:00:31]}  Kd5 {[%clk 0:00:46]} 40. Kd2 {[%clk 0:00:30]}  Ke4 {[%clk 0:00:46]} 41. Ke2 {[%clk 0:00:31]}  Kf4 {[%clk 0:00:40]} 42. Kd3 {[%clk 0:00:32]}  Kxg4 {[%clk 0:00:41]} 43. Kxd4 {[%clk 0:00:33]}  Kxh5 {[%clk 0:00:42]} 44. Ke3 {[%clk 0:00:34]}  Kg4 {[%clk 0:00:42]} 45. Kf2 {[%clk 0:00:34]}  Kh3 {[%clk 0:00:43]} 46. Kg1 {[%clk 0:00:35]}  h5 {[%clk 0:00:43]} 47. Kh1 {[%clk 0:00:36]}  Kg3 {[%clk 0:00:43]} 48. Kg1 {[%clk 0:00:37]}  Kf4 {[%clk 0:00:43]} 49. Kh1 {[%clk 0:00:38]}  Kg3 {[%clk 0:00:42]} 50. Kg1 {[%clk 0:00:39]}  g4 {[%clk 0:00:43]} 51. Kh1 {[%clk 0:00:39]}  Kf2 {[%clk 0:00:43]} 52. Kh2 {[%clk 0:00:39]}  g3+ {[%clk 0:00:43]} 53. Kh3 {[%clk 0:00:39]}  g2 {[%clk 0:00:40]} 54. Kh4 {[%clk 0:00:40]}  g1=Q {[%clk 0:00:39]} 55. Kh3 {[%clk 0:00:40]}  Qg3# {[%clk 0:00:37]} 0-1


[Site "https://www.chess.com"]

[Event "Titled Tuesday Blitz December 20 Early 2022"]
[White "GuessChess_game"]
[Black "Carvalho, Heracles Elieser"]
[BlackFideId "22751114"]
[WhiteElo "2424"]
[BlackElo "1895"]
[Result "0-1"]
[Round "10"]
[TimeControl "180+2"]
[Date "2022.12.20"]
[WhiteClock "0:00:25"]
[BlackClock "0:00:15"]

1. d4 {[%clk 0:03:00]}  Nf6 {[%clk 0:02:59]} 2. Nf3 {[%clk 0:03:00]}  g6 {[%clk 0:02:59]} 3. Nc3 {[%clk 0:02:59]}  d5 {[%clk 0:02:56]} 4. Bf4 {[%clk 0:02:58]}  Bg7 {[%clk 0:02:57]} 5. e3 {[%clk 0:02:57]}  O-O {[%clk 0:02:57]} 6. Be2 {[%clk 0:02:56]}  c5 {[%clk 0:02:57]} 7. dxc5 {[%clk 0:02:55]}  Qa5 {[%clk 0:02:38]} 8. Nd2 {[%clk 0:02:55]}  Qxc5 {[%clk 0:02:26]} 9. Nb3 {[%clk 0:02:55]}  Qb6 {[%clk 0:02:20]} 10. Nb5 {[%clk 0:02:54]}  Na6 {[%clk 0:02:16]} 11. Be5 {[%clk 0:02:52]}  Bf5 {[%clk 0:02:14]} 12. O-O {[%clk 0:02:47]}  Rac8 {[%clk 0:02:13]} 13. c3 {[%clk 0:02:45]}  Be4 {[%clk 0:00:59]} 14. Bd4 {[%clk 0:02:36]}  Qd8 {[%clk 0:00:59]} 15. Nxa7 {[%clk 0:02:36]}  Ra8 {[%clk 0:00:59]} 16. Nb5 {[%clk 0:02:34]}  Nb8 {[%clk 0:00:51]} 17. Nc5 {[%clk 0:02:19]}  Nc6 {[%clk 0:00:51]} 18. Bxf6 {[%clk 0:01:51]}  Bxf6 {[%clk 0:00:51]} 19. Nxe4 {[%clk 0:01:51]}  dxe4 {[%clk 0:00:52]} 20. Qxd8 {[%clk 0:01:49]}  Rfxd8 {[%clk 0:00:53]} 21. Rfd1 {[%clk 0:01:47]}  Rxd1+ {[%clk 0:00:51]} 22. Bxd1 {[%clk 0:01:43]}  Rd8 {[%clk 0:00:48]} 23. Nd4 {[%clk 0:01:36]}  Nxd4 {[%clk 0:00:32]} 24. exd4 {[%clk 0:01:27]}  e5 {[%clk 0:00:33]} 25. dxe5 {[%clk 0:00:50]}  Bxe5 {[%clk 0:00:34]} 26. Kf1 {[%clk 0:00:48]}  Rd2 {[%clk 0:00:32]} 27. Rb1 {[%clk 0:00:48]}  Bxh2 {[%clk 0:00:25]} 28. g3 {[%clk 0:00:41]}  e3 {[%clk 0:00:25]} 29. fxe3 {[%clk 0:00:41]}  Bxg3 {[%clk 0:00:26]} 30. a4 {[%clk 0:00:34]}  h5 {[%clk 0:00:25]} 31. b4 {[%clk 0:00:30]}  h4 {[%clk 0:00:24]} 32. Bg4 {[%clk 0:00:29]}  Rf2+ {[%clk 0:00:20]} 33. Kg1 {[%clk 0:00:28]}  Rc2 {[%clk 0:00:21]} 34. Rb3 {[%clk 0:00:26]}  f5 {[%clk 0:00:19]} 35. Bf3 {[%clk 0:00:25]}  h3 {[%clk 0:00:15]} 36. Bxb7 {[%clk 0:00:25]}  Rc1# {[%clk 0:00:15]} 0-1


[Site "https://www.chess.com"]

[Event "Titled Tuesday Blitz December 20 Early 2022"]
[White "HashtagChess"]
[Black "Diaz Argandona, Balack Leo"]
[BlackFideId "3847160"]
[WhiteElo "1812"]
[BlackElo "1496"]
[Result "0-1"]
[Round "10"]
[TimeControl "180+2"]
[Date "2022.12.20"]
[WhiteClock "0:00:02"]
[BlackClock "0:00:20"]

1. e4 {[%clk 0:03:00]}  c5 {[%clk 0:02:59]} 2. Nf3 {[%clk 0:02:54]}  e6 {[%clk 0:03:00]} 3. d4 {[%clk 0:02:55]}  cxd4 {[%clk 0:03:01]} 4. Nxd4 {[%clk 0:02:54]}  Nc6 {[%clk 0:03:01]} 5. Nc3 {[%clk 0:02:53]}  Qc7 {[%clk 0:03:01]} 6. Be3 {[%clk 0:02:46]}  a6 {[%clk 0:03:01]} 7. Be2 {[%clk 0:02:33]}  Nf6 {[%clk 0:02:56]} 8. O-O {[%clk 0:02:29]}  d6 {[%clk 0:02:57]} 9. f3 {[%clk 0:02:27]}  Be7 {[%clk 0:02:56]} 10. g4 {[%clk 0:02:13]}  Ne5 {[%clk 0:02:53]} 11. h4 {[%clk 0:02:08]}  Nc4 {[%clk 0:02:53]} 12. Bc1 {[%clk 0:01:59]}  d5 {[%clk 0:02:43]} 13. Kg2 {[%clk 0:01:34]}  b5 {[%clk 0:01:54]} 14. g5 {[%clk 0:01:07]}  b4 {[%clk 0:01:54]} 15. Na4 {[%clk 0:00:50]}  dxe4 {[%clk 0:01:44]} 16. gxf6 {[%clk 0:00:44]}  gxf6 {[%clk 0:01:44]} 17. Kh1 {[%clk 0:00:19]}  Qg3 {[%clk 0:01:25]} 18. Bg5 {[%clk 0:00:19]}  fxg5 {[%clk 0:01:21]} 19. Bxc4 {[%clk 0:00:18]}  Qxh4+ {[%clk 0:01:20]} 20. Kg2 {[%clk 0:00:18]}  exf3+ {[%clk 0:01:18]} 21. Qxf3 {[%clk 0:00:16]}  O-O {[%clk 0:00:54]} 22. Qxa8 {[%clk 0:00:14]}  Qxd4 {[%clk 0:00:54]} 23. Bd3 {[%clk 0:00:14]}  Qg4+ {[%clk 0:00:52]} 24. Kh1 {[%clk 0:00:12]}  Bd6 {[%clk 0:00:32]} 25. Qg2 {[%clk 0:00:10]}  Qh4+ {[%clk 0:00:22]} 26. Kg1 {[%clk 0:00:10]}  Bb7 {[%clk 0:00:21]} 27. Be4 {[%clk 0:00:02]}  Bxe4 {[%clk 0:00:20]} 0-1


[Site "https://www.chess.com"]

[Event "Titled Tuesday Blitz December 20 Early 2022"]
[White "Ibarra Jerez, Jose Carlos"]
[Black "exoticprincess"]
[WhiteFideId "2226332"]
[WhiteElo "2563"]
[BlackElo "3057"]
[Result "0-1"]
[Round "10"]
[TimeControl "180+2"]
[Date "2022.12.20"]
[WhiteClock "0:00:03"]
[BlackClock "0:00:33"]

1. e4 {[%clk 0:03:00]}  c6 {[%clk 0:02:58]} 2. Nf3 {[%clk 0:03:00]}  d5 {[%clk 0:02:59]} 3. d3 {[%clk 0:03:01]}  dxe4 {[%clk 0:02:59]} 4. dxe4 {[%clk 0:03:01]}  Qxd1+ {[%clk 0:03:00]} 5. Kxd1 {[%clk 0:03:02]}  Nf6 {[%clk 0:03:01]} 6. Nbd2 {[%clk 0:03:01]}  g6 {[%clk 0:03:01]} 7. Ne5 {[%clk 0:03:01]}  Bh6 {[%clk 0:03:01]} 8. f3 {[%clk 0:03:00]}  O-O {[%clk 0:03:00]} 9. a4 {[%clk 0:02:58]}  Nbd7 {[%clk 0:02:59]} 10. Nd3 {[%clk 0:02:58]}  Rd8 {[%clk 0:02:58]} 11. Nc4 {[%clk 0:02:54]}  Bxc1 {[%clk 0:02:59]} 12. Kxc1 {[%clk 0:02:55]}  Nb6 {[%clk 0:02:58]} 13. Ne3 {[%clk 0:02:47]}  a5 {[%clk 0:02:57]} 14. b3 {[%clk 0:02:44]}  Kg7 {[%clk 0:02:56]} 15. c3 {[%clk 0:02:34]}  Nfd7 {[%clk 0:02:52]} 16. Kc2 {[%clk 0:02:34]}  e5 {[%clk 0:02:52]} 17. Be2 {[%clk 0:02:31]}  f6 {[%clk 0:02:53]} 18. Rhd1 {[%clk 0:02:31]}  Nf8 {[%clk 0:02:51]} 19. Nc5 {[%clk 0:02:27]}  Rxd1 {[%clk 0:02:41]} 20. Rxd1 {[%clk 0:02:28]}  Ne6 {[%clk 0:02:42]} 21. Nxe6+ {[%clk 0:02:21]}  Bxe6 {[%clk 0:02:43]} 22. Bc4 {[%clk 0:02:13]}  Nxc4 {[%clk 0:02:37]} 23. Nxc4 {[%clk 0:02:13]}  Kf8 {[%clk 0:02:29]} 24. Nb6 {[%clk 0:01:57]}  Re8 {[%clk 0:02:28]} 25. b4 {[%clk 0:01:53]}  axb4 {[%clk 0:02:27]} 26. cxb4 {[%clk 0:01:54]}  Ke7 {[%clk 0:02:27]} 27. Kc3 {[%clk 0:01:49]}  f5 {[%clk 0:02:27]} 28. Nc4 {[%clk 0:01:45]}  Kf6 {[%clk 0:02:20]} 29. Rd6 {[%clk 0:01:38]}  Ke7 {[%clk 0:02:16]} 30. Rd2 {[%clk 0:01:36]}  Kf6 {[%clk 0:02:16]} 31. Rd6 {[%clk 0:01:35]}  f4 {[%clk 0:01:55]} 32. a5 {[%clk 0:01:24]}  g5 {[%clk 0:01:49]} 33. h3 {[%clk 0:01:12]}  h5 {[%clk 0:01:49]} 34. a6 {[%clk 0:01:07]}  bxa6 {[%clk 0:01:50]} 35. Rxc6 {[%clk 0:01:08]}  Rc8 {[%clk 0:01:49]} 36. Rxc8 {[%clk 0:01:01]}  Bxc8 {[%clk 0:01:49]} 37. Nb6 {[%clk 0:00:58]}  Be6 {[%clk 0:01:44]} 38. Nd5+ {[%clk 0:00:39]}  Bxd5 {[%clk 0:01:32]} 39. exd5 {[%clk 0:00:40]}  Ke7 {[%clk 0:01:32]} 40. Kd3 {[%clk 0:00:40]}  Kd6 {[%clk 0:01:32]} 41. Ke4 {[%clk 0:00:34]}  h4 {[%clk 0:01:33]} 42. Kf5 {[%clk 0:00:33]}  Kxd5 {[%clk 0:01:33]} 43. Kxg5 {[%clk 0:00:33]}  Kc4 {[%clk 0:01:33]} 44. Kxh4 {[%clk 0:00:34]}  Kxb4 {[%clk 0:01:17]} 45. Kg5 {[%clk 0:00:26]}  a5 {[%clk 0:01:18]} 46. h4 {[%clk 0:00:27]}  e4 {[%clk 0:01:18]} 47. h5 {[%clk 0:00:28]}  e3 {[%clk 0:01:16]} 48. h6 {[%clk 0:00:28]}  e2 {[%clk 0:01:17]} 49. h7 {[%clk 0:00:29]}  e1=Q {[%clk 0:01:17]} 50. h8=Q {[%clk 0:00:29]}  Qd2 {[%clk 0:01:13]} 51. Qb8+ {[%clk 0:00:26]}  Ka3 {[%clk 0:01:12]} 52. Qxf4 {[%clk 0:00:20]}  Qxg2+ {[%clk 0:01:12]} 53. Kf5 {[%clk 0:00:20]}  Qc2+ {[%clk 0:00:52]} 54. Qe4 {[%clk 0:00:20]}  Kb3 {[%clk 0:00:52]} 55. Kg5 {[%clk 0:00:12]}  a4 {[%clk 0:00:45]} 56. Qb7+ {[%clk 0:00:08]}  Kc3 {[%clk 0:00:43]} 57. Qc6+ {[%clk 0:00:08]}  Kb2 {[%clk 0:00:43]} 58. Qf6+ {[%clk 0:00:07]}  Kb1 {[%clk 0:00:42]} 59. Qb6+ {[%clk 0:00:07]}  Qb2 {[%clk 0:00:40]} 60. Qd6 {[%clk 0:00:01]}  a3 {[%clk 0:00:39]} 61. f4 {[%clk 0:00:02]}  Qg2+ {[%clk 0:00:36]} 62. Kf6 {[%clk 0:00:01]}  Qf3 {[%clk 0:00:32]} 63. Qd2 {[%clk 0:00:02]}  a2 {[%clk 0:00:32]} 64. Qb4+ {[%clk 0:00:02]}  Kc2 {[%clk 0:00:31]} 65. Qc5+ {[%clk 0:00:02]}  Qc3+ {[%clk 0:00:31]} 66. Qxc3+ {[%clk 0:00:01]}  Kxc3 {[%clk 0:00:32]} 67. f5 {[%clk 0:00:01]}  a1=Q {[%clk 0:00:33]} 68. Kf7 {[%clk 0:00:02]}  Kd4 {[%clk 0:00:33]} 69. f6 {[%clk 0:00:03]}  Ke5 {[%clk 0:00:33]} 70. Kg8 {[%clk 0:00:03]}  Kxf6 {[%clk 0:00:33]} 0-1


[Site "https://www.chess.com"]